fUSD/lending_fUSD_20250426
["ID","MTS","AMOUNT","RATE_DAILY","PERIOD"]
[359078965,1745698240274,-400.0,0.00019589,2]
[359078966,1745698240284,-400.0,0.00019589,2]
[359078967,1745698240294,-504.77,0.00019589,2]
[359078968,1745698240306,-400.0,0.00019589,2]
[359078969,1745698240316,-400.0,0.00019589,2]
[359078970,1745698240326,-400.0,0.00019589,2]
[359078971,1745698240336,-400.0,0.00019589,2]
[359078972,1745698240347,-400.0,0.00019589,2]
[359078973,1745698240358,-400.0,0.00019589,2]
[359078974,1745698240369,-513.62,0.00019589,2]
[359078975,1745698240379,-400.0,0.00019589,2]
[359078976,1745698240391,-546.02,0.00019589,2]
[359078977,1745698240403,-400.0,0.00019589,2]
[359078978,1745698240413,-400.0,0.00019589,2]
[359078979,1745698240423,-500.00623499,0.00019589,2]
[359078980,1745698240433,-400.0,0.00019589,2]
[359078981,1745698240443,-400.0,0.00019589,2]
[359078982,1745698240465,-400.0,0.00019589,2]
[359078983,1745698240476,-438.1,0.00019589,2]
[359078984,1745698240486,-400.0,0.00019589,2]
[359078985,1745698240498,-810.02,0.00019589,2]
[359078986,1745698240510,-400.0,0.00019589,2]
[359078987,1745698240519,-400.0,0.00019589,2]
[359078988,1745698240530,-481.9,0.00019589,2]
[359078989,1745698240542,-400.0,0.00019589,2]
[359078990,1745698240553,-1181.25,0.00019589,2]
[359078992,1745698240563,-271.93936435,0.00019589,2]
[359078993,1745698240574,-400.0,0.00019589,2]
[359078994,1745698240584,-400.0,0.00019589,2]
[359078995,1745698240595,-400.0,0.00019589,2]
[359078996,1745698240605,-400.0,0.00019589,2]
[359078997,1745698240617,-400.0,0.00019589,2]
[359078998,1745698240627,-400.0,0.00019589,2]
[359078999,1745698240637,-448.97,0.00019589,2]
[359079000,1745698240648,-512.46344599,0.00019589,2]
[359079001,1745698240658,-799.88,0.00019589,2]
[359079002,1745698240669,-1419.14,0.00019589,2]
[359079003,1745698240679,-400.0,0.00019589,2]
[359079004,1745698240690,-282.3805587,0.00019589,2]
[359079005,1745698240700,-207.56464199,0.00019589,2]
[359079006,1745698240710,-400.0,0.00019589,2]
[359079007,1745698240721,-400.0,0.00019589,2]
[359079008,1745698240731,-523.59592513,0.00019589,2]
[359079009,1745698240743,-400.0,0.00019589,2]
[359079010,1745698240753,-400.0,0.00019589,2]
[359079011,1745698240764,-400.0,0.00019589,2]
[359079012,1745698240775,-604.32,0.00019589,2]
[359079013,1745698240785,-400.0,0.00019589,2]
[359079014,1745698240795,-400.0,0.00019589,2]
[359079015,1745698240805,-400.0,0.00019589,2]
[359079016,1745698240816,-400.0,0.00019589,2]
[359079017,1745698240826,-400.0,0.00019589,2]
[359079018,1745698240837,-222.51761735,0.00019589,2]
[359079019,1745698240848,-1346.91,0.00019589,2]
[359079020,1745698240858,-679.96,0.00019589,2]
[359079021,1745698240870,-400.0,0.00019589,2]
[359079022,1745698240885,-400.0,0.00019589,2]
[359079023,1745698240898,-694.78,0.00019589,2]
[359079024,1745698240911,-483.39,0.00019589,2]
[359079025,1745698240922,-400.0,0.00019589,2]
[359079026,1745698240933,-724.37,0.00019589,2]
[359079027,1745698240943,-400.0,0.00019589,2]
[359079028,1745698240954,-547.27,0.00019589,2]
[359079029,1745698240964,-400.0,0.00019589,2]
[359079030,1745698240974,-1570.14,0.00019589,2]
[359079031,1745698240985,-400.0,0.00019589,2]
[359079032,1745698240997,-400.0,0.00019589,2]
[359079033,1745698241009,-255.11899499,0.00019589,2]
[359079034,1745698241020,-400.0,0.00019589,2]
[359079035,1745698241030,-400.0,0.00019589,2]
[359079036,1745698241041,-611.29,0.00019589,2]
[359079037,1745698241051,-556.1,0.00019589,2]
[359079038,1745698241063,-400.0,0.00019589,2]
[359079039,1745698241075,-400.0,0.00019589,2]
[359079040,1745698241085,-400.0,0.00019589,2]
[359079041,1745698241095,-400.0,0.00019589,2]
[359079042,1745698241106,-400.0,0.00019589,2]
[359079043,1745698241117,-400.0,0.00019589,2]
[359079044,1745698241128,-430.56,0.00019589,2]
[359079045,1745698241138,-400.0,0.00019589,2]
[359079046,1745698241149,-570.11,0.00019589,2]
[359079047,1745698241159,-400.0,0.00019589,2]
[359079048,1745698241171,-293.67150404,0.00019589,2]
[359079049,1745698241182,-400.0,0.00019589,2]
[359079050,1745698241193,-731.57,0.00019589,2]
[359079051,1745698241203,-429.96,0.00019589,2]
[359079052,1745698241213,-400.0,0.00019589,2]
[359079053,1745698241223,-530.31,0.00019589,2]
[359079054,1745698241233,-300.0,0.00019589,2]
[359079055,1745698241243,-517.69,0.00019589,2]
[359079056,1745698241253,-565.83,0.00019589,2]
[359079057,1745698241263,-533.74482889,0.00019589,2]
[359079058,1745698241274,-400.0,0.00019589,2]
[359079059,1745698241285,-494.5,0.00019589,2]
[359079060,1745698241297,-400.0,0.00019589,2]
[359079061,1745698241308,-571.54,0.00019589,2]
[359079062,1745698241324,-400.0,0.00019589,2]
[359079063,1745698241334,-400.0,0.00019589,2]
[359079064,1745698241345,-598.11,0.00019589,2]
[359079065,1745698241355,-400.0,0.00019589,2]
[359079066,1745698241365,-412.76,0.00019589,2]
[359079067,1745698241375,-400.0,0.00019589,2]
[359079068,1745698241385,-400.0,0.00019589,2]
[359079069,1745698241395,-400.0,0.00019589,2]
[359079070,1745698241406,-400.0,0.00019589,2]
[359079071,1745698241416,-400.0,0.00019589,2]
[359079072,1745698241426,-400.0,0.00019589,2]
[359079073,1745698241436,-579.39,0.00019589,2]
[359079074,1745698241446,-400.0,0.00019589,2]
[359079075,1745698241456,-400.0,0.00019589,2]
[359079076,1745698241467,-547.34,0.00019589,2]
[359079077,1745698241477,-400.0,0.00019589,2]
[359079078,1745698241487,-3091.27,0.00019589,2]
[359079079,1745698241497,-400.0,0.00019589,2]
[359079080,1745698241507,-400.0,0.00019589,2]
[359079081,1745698241518,-400.0,0.00019589,2]
[359079082,1745698241528,-780.99,0.00019589,2]
[359079083,1745698241541,-702.57,0.00019589,2]
[359079084,1745698241551,-400.0,0.00019589,2]
[359079085,1745698241561,-580.91,0.00019589,2]
[359079086,1745698241572,-400.0,0.00019589,2]
[359079087,1745698241583,-637.89,0.00019589,2]
[359079088,1745698241595,-489.73,0.00019589,2]
[359079089,1745698241605,-179.52554957,0.00019589,2]
[359079090,1745698241618,-400.0,0.00019589,2]
[359079091,1745698241629,-400.0,0.00019589,2]
[359079092,1745698241641,-573.18,0.00019589,2]
[359079093,1745698242008,-656.69,0.00019589,2]
[359079094,1745698242019,-664.54,0.00019589,2]
[359079095,1745698242030,-400.0,0.00019589,2]
[359079096,1745698242040,-400.0,0.00019589,2]
[359079097,1745698242050,-452.76,0.00019589,2]
[359079098,1745698242061,-400.0,0.00019589,2]
[359079099,1745698242071,-151.0,0.00019589,2]
[359079100,1745698242081,-1943.12921312,0.00019589,2]
[359079101,1745698242091,-400.0,0.00019589,2]
[359079102,1745698242102,-471.26,0.00019589,2]
[359079103,1745698242112,-400.0,0.00019589,2]
[359079104,1745698242121,-400.0,0.00019589,2]
[359079105,1745698242132,-400.0,0.00019589,2]
[359079106,1745698242142,-400.0,0.00019589,2]
[359079107,1745698242152,-500.0,0.00019589,2]
[359079108,1745698242163,-400.0,0.00019589,2]
[359079109,1745698242174,-400.0,0.00019589,2]
[359079110,1745698242183,-581.65,0.00019589,2]
[359079111,1745698242194,-400.0,0.00019589,2]
[359079112,1745698242205,-400.0,0.00019589,2]
[359079113,1745698242217,-625.49,0.00019589,2]
[359079114,1745698242227,-444.3,0.00019589,2]
[359079115,1745698242236,-540.67,0.00019589,2]
[359079116,1745698242246,-400.0,0.00019589,2]
[359079117,1745698242256,-400.0,0.00019589,2]
[359079118,1745698242266,-400.0,0.00019589,2]
[359079119,1745698242277,-400.0,0.00019589,2]
[359079120,1745698242286,-400.0,0.00019589,2]
[359079121,1745698242297,-444.48,0.00019589,2]
[359079122,1745698242307,-400.0,0.00019589,2]
[359079123,1745698242318,-400.0,0.00019589,2]
[359079124,1745698242328,-400.0,0.00019589,2]
[359079125,1745698242339,-400.0,0.00019589,2]
[359079126,1745698242349,-448.85,0.00019589,2]
[359079127,1745698242359,-400.0,0.00019589,2]
[359079128,1745698242369,-400.0,0.00019589,2]
[359079129,1745698242380,-732.97,0.00019589,2]
[359079130,1745698242390,-400.0,0.00019589,2]
[359079131,1745698242400,-400.0,0.00019589,2]
[359079132,1745698242409,-532.53,0.00019589,2]
[359079133,1745698242419,-305.82745767,0.00019589,2]
[359079134,1745698242429,-655.85,0.00019589,2]
[359079135,1745698242439,-541.36409759,0.00019589,2]
[359079136,1745698242449,-400.0,0.00019589,2]
[359079137,1745698242459,-738.99,0.00019589,2]
[359079138,1745698242470,-400.0,0.00019589,2]
[359079139,1745698242479,-400.0,0.00019589,2]
[359079140,1745698242490,-400.0,0.00019589,2]
[359079141,1745698242499,-400.0,0.00019589,2]
[359079142,1745698242509,-400.0,0.00019589,2]
[359079143,1745698242519,-429.78,0.00019589,2]
[359079144,1745698242529,-400.0,0.00019589,2]
[359079145,1745698242544,-400.0,0.00019589,2]
[359079146,1745698242555,-400.0,0.00019589,2]
[359079147,1745698242565,-566.14,0.00019589,2]
[359079148,1745698242576,-877.53,0.00019589,2]
[359079149,1745698242586,-400.0,0.00019589,2]
[359079150,1745698242596,-400.0,0.00019589,2]
[359079151,1745698242606,-400.0,0.00019589,2]
[359079152,1745698242618,-400.0,0.00019589,2]
[359079153,1745698242627,-400.0,0.00019589,2]
[359079154,1745698242637,-400.0,0.00019589,2]
[359079155,1745698242648,-400.0,0.00019589,2]
[359079156,1745698242658,-400.0,0.00019589,2]
[359079157,1745698242668,-2128.94,0.00019589,2]
[359079158,1745698242678,-769.99,0.00019589,2]
[359079159,1745698242688,-3736.62,0.00019589,2]
[359079160,1745698242698,-158.960145,0.00019589,2]
[359079161,1745698242709,-708.0,0.00019589,2]
[359079162,1745698242719,-867.12,0.00019589,2]
[359079164,1745698242729,-527.81,0.00019589,2]
[359079166,1745698242739,-409.63,0.00019589,2]
[359079168,1745698242749,-400.0,0.00019589,2]
[359079169,1745698242759,-400.0,0.00019589,2]
[359079170,1745698242769,-400.0,0.00019589,2]
[359079171,1745698242780,-400.0,0.00019589,2]
[359079172,1745698242791,-400.0,0.00019589,2]
[359079173,1745698242801,-400.0,0.00019589,2]
[359079174,1745698242811,-652.08,0.00019589,2]
[359079175,1745698242821,-400.0,0.00019589,2]
[359079176,1745698242831,-400.0,0.00019589,2]
[359079177,1745698242842,-411.59,0.00019589,2]
[359079178,1745698242852,-400.0,0.00019589,2]
[359079179,1745698242862,-400.0,0.00019589,2]
[359079180,1745698242871,-400.0,0.00019589,2]
[359079181,1745698242881,-400.0,0.00019589,2]
[359079182,1745698242892,-400.0,0.00019589,2]
[359079183,1745698242902,-714.85,0.00019589,2]
[359079184,1745698242912,-152.290803,0.00019589,2]
[359079185,1745698242921,-400.0,0.00019589,2]
[359079186,1745698242932,-400.0,0.00019589,2]
[359079187,1745698242941,-400.0,0.00019589,2]
[359079188,1745698242951,-400.0,0.00019589,2]
[359079189,1745698242961,-2671.18,0.00019589,2]
[359079190,1745698242971,-400.0,0.00019589,2]
[359079191,1745698242982,-400.0,0.00019589,2]
[359079192,1745698242992,-400.0,0.00019589,2]
[359079193,1745698243002,-400.0,0.00019589,2]
[359079194,1745698243012,-445.57,0.00019589,2]
[359079195,1745698243022,-400.0,0.00019589,2]
[359079196,1745698243033,-400.0,0.00019589,2]
[359079197,1745698243043,-400.0,0.00019589,2]
[359079198,1745698243053,-432.25,0.00019589,2]
[359079199,1745698243064,-400.0,0.00019589,2]
[359079200,1745698243075,-400.0,0.00019589,2]
[359079201,1745698243086,-400.0,0.00019589,2]
[359079202,1745698243096,-622.1,0.00019589,2]
[359079203,1745698243107,-400.0,0.00019589,2]
[359079204,1745698243117,-745.62,0.00019589,2]
[359079205,1745698243127,-400.0,0.00019589,2]
[359079206,1745698243137,-427.92,0.00019589,2]
[359079207,1745698243146,-400.0,0.00019589,2]
[359079208,1745698243157,-400.0,0.00019589,2]
[359079209,1745698243167,-485.66,0.00019589,2]
[359079211,1745698243177,-400.0,0.00019589,2]
[359079213,1745698243187,-400.0,0.00019589,2]
[359079216,1745698243198,-1604.68,0.00019589,2]
[359079218,1745698243208,-906.67,0.00019589,2]
[359079220,1745698243218,-740.19,0.00019589,2]
[359079222,1745698243228,-400.0,0.00019589,2]
[359079224,1745698243238,-400.0,0.00019589,2]
[359079225,1745698243248,-400.0,0.00019589,2]
[359079227,1745698243258,-400.0,0.00019589,2]
[359079229,1745698243267,-618.53,0.00019589,2]
[359079231,1745698243277,-400.0,0.00019589,2]
[359079234,1745698243287,-480.63,0.00019589,2]
[359079236,1745698243297,-400.0,0.00019589,2]
[359079238,1745698243308,-697.87,0.00019589,2]
[359079240,1745698243318,-400.0,0.00019589,2]
[359079242,1745698243328,-535.25,0.00019589,2]
[359079244,1745698243338,-400.0,0.00019589,2]
[359079247,1745698243348,-402.54,0.00019589,2]
[359079248,1745698243358,-547.15,0.00019589,2]
[359079249,1745698243367,-400.0,0.00019589,2]
[359079251,1745698243378,-566.63,0.00019589,2]
[359079252,1745698243388,-609.03,0.00019589,2]
[359079254,1745698243398,-1000.15,0.00019589,2]
[359079256,1745698243408,-400.0,0.00019589,2]
[359079258,1745698243418,-445.16,0.00019589,2]
[359079260,1745698243428,-400.0,0.00019589,2]
[359079262,1745698243438,-637.23,0.00019589,2]
[359079264,1745698243447,-400.0,0.00019589,2]
[359079266,1745698243457,-1061.91,0.00019589,2]
[359079268,1745698243468,-400.0,0.00019589,2]
[359079270,1745698243478,-400.0,0.00019589,2]
[359079272,1745698243488,-500.0,0.00019589,2]
[359079274,1745698243499,-500.0,0.00019589,2]
[359079276,1745698243508,-400.0,0.00019589,2]
[359079278,1745698243518,-629.85,0.00019589,2]
[359079280,1745698243528,-400.0,0.00019589,2]
[359079282,1745698243541,-400.0,0.00019589,2]
[359079284,1745698243552,-400.0,0.00019589,2]
[359079286,1745698243562,-400.0,0.00019589,2]
[359079288,1745698243572,-588.95,0.00019589,2]
[359079290,1745698243584,-500.0,0.00019589,2]
[359079292,1745698243594,-400.0,0.00019589,2]
[359079294,1745698243603,-401.32745232,0.00019589,2]
[359079296,1745698243614,-133343.33217648,0.00019589,2]
[359079298,1745698243625,-400.0,0.0001959,2]
[359079300,1745698243635,-400.0,0.0001959,2]
[359079302,1745698243646,-753.9,0.0001959,2]
[359079304,1745698243656,-400.0,0.0001959,2]
[359079306,1745698243665,-821.78,0.0001959,2]
[359079308,1745698243675,-824.1,0.0001959,2]
[359079310,1745698243685,-642.42,0.0001959,2]
[359079312,1745698243695,-739.0,0.0001959,2]
[359079315,1745698243705,-150.0,0.0001959,2]
[359079317,1745698243714,-150.0,0.0001959,2]
[359079319,1745698243726,-150.0,0.0001959,2]
[359079321,1745698243736,-500.0,0.0001959,2]
[359079323,1745698243745,-500.0,0.00019616,2]
[359079325,1745698243755,-500.0,0.00019616,2]
[359079327,1745698243765,-739.0,0.00019617,2]
[359079329,1745698243775,-150.0,0.00019617,2]
[359079331,1745698243785,-150.0,0.00019617,2]
[359079333,1745698243795,-200.0,0.00019617,2]
[359079335,1745698243804,-1490.19561477,0.00019625,2]
[359079337,1745698243814,-2582.79922607,0.00019627,2]
[359079339,1745698243824,-500.0,0.00019644,2]
[359079341,1745698243834,-500.0,0.00019644,2]
[359079343,1745698243845,-739.0,0.00019645,2]
[359079345,1745698243856,-150.0,0.00019645,2]
[359079347,1745698243866,-150.0,0.00019645,2]
[359079349,1745698243875,-1490.19561477,0.00019671,2]
[359079351,1745698243885,-500.0,0.00019671,2]
[359079353,1745698243895,-739.0,0.00019672,2]
[359079355,1745698243905,-150.0,0.00019672,2]
[359079357,1745698243915,-150.0,0.00019672,2]
[359079359,1745698243925,-2582.79922607,0.00019672,2]
[359079361,1745698243935,-500.0,0.00019699,2]
[359079363,1745698243946,-739.0,0.000197,2]
[359079365,1745698243956,-150.0,0.000197,2]
[359079367,1745698243966,-150.0,0.000197,2]
[359079369,1745698243976,-1490.19561477,0.00019717,2]
[359079371,1745698243985,-2582.79922607,0.00019718,2]
[359079373,1745698243996,-500.0,0.00019726,2]
[359079375,1745698244006,-151.0,0.00019727,2]
[359079377,1745698244016,-739.0,0.00019727,2]
[359079379,1745698244025,-250.0,0.00019727,2]
[359079381,1745698244035,-250.0,0.00019727,2]
[359079383,1745698244045,-151.0,0.00019728,2]
[359079385,1745698244056,-151.0,0.00019728,2]
[359079387,1745698244066,-151.0,0.00019729,2]
[359079389,1745698244077,-151.0,0.00019729,2]
[359079391,1745698244087,-151.0,0.0001973,2]
[359079393,1745698244097,-151.0,0.00019731,2]
[359079395,1745698244107,-151.0,0.00019731,2]
[359079397,1745698244117,-151.0,0.00019732,2]
[359079399,1745698244127,-150.0,0.00019733,2]
[359079401,1745698244137,-151.0,0.00019733,2]
[359079403,1745698244146,-150.0,0.00019744,2]
[359079405,1745698244156,-339.0,0.00019753,2]
[359079407,1745698244165,-739.0,0.00019754,2]
[359079409,1745698244175,-400.0,0.00019761,2]
[359079411,1745698244185,-400.0,0.00019761,2]
[359079413,1745698244194,-400.0,0.00019761,2]
[359079415,1745698244204,-400.0,0.00019761,2]
[359079417,1745698244213,-400.0,0.00019761,2]
[359079419,1745698244223,-700.96,0.00019761,2]
[359079421,1745698244232,-442.11,0.00019761,2]
[359079423,1745698244241,-400.0,0.00019761,2]
[359079425,1745698244251,-942.19,0.00019761,2]
[359079427,1745698244261,-464.37,0.00019761,2]
[359079429,1745698244270,-400.0,0.00019761,2]
[359079431,1745698244280,-737.58,0.00019761,2]
[359079433,1745698244290,-449.15,0.00019761,2]
[359079435,1745698244300,-472.69394589,0.00019761,2]
[359079437,1745698244310,-574.63,0.00019761,2]
[359079439,1745698244321,-400.0,0.00019761,2]
[359079441,1745698244332,-423.37,0.00019761,2]
[359079443,1745698244342,-8683.815416,0.00019761,2]
[359079445,1745698244352,-1490.19561477,0.00019763,2]
[359079447,1745698244362,-2582.79922607,0.00019763,2]
[359079449,1745698244371,-150.0,0.00019772,2]
[359079451,1745698244382,-739.0,0.00019782,2]
[359079453,1745698244392,-200.0,0.00019785,2]
[359079455,1745698244402,-150.0,0.00019799,2]
[359079457,1745698244412,-9343.09,0.00019799,2]
[359079459,1745698244421,-4952.2,0.00019799,2]
[359079469,1745698244432,-1636.84,0.00019799,2]
[359079471,1745698244513,-225.2912023,0.00019799,2]
[359079473,1745698244523,-28042.31664941,0.000198,2]
[359079475,1745698244533,-150.0,0.00019806,2]
[359079477,1745698244545,-1490.19561477,0.00019808,2]
[359079479,1745698244555,-2582.79922607,0.00019809,2]
[359079481,1745698244565,-739.0,0.00019809,2]
[359079483,1745698244575,-150.0,0.00019812,2]
[359079485,1745698244586,-150.0,0.00019813,2]
[359079487,1745698244595,-739.0,0.00019837,2]
[359079489,1745698244604,-150.0,0.00019844,2]
[359079491,1745698244614,-1446.0,0.00019847,2]
[359079493,1745698244624,-548.0,0.00019847,2]
[359079495,1745698244633,-911.0,0.00019847,2]
[359079497,1745698244643,-1490.19561477,0.00019854,2]
[359079499,1745698244652,-2582.79922607,0.00019854,2]
[359079501,1745698244662,-150.0,0.00019858,2]
[359079503,1745698244671,-1094.03633529,0.00019859,2]
[359079504,1745698244681,-400.0,0.00019862,2]
[359079506,1745698244691,-400.0,0.00019862,2]
[359079508,1745698244701,-400.0,0.00019862,2]
[359079510,1745698244711,-400.0,0.00019862,2]
[359079513,1745698244721,-488.20468367,0.00019862,2]
[359079515,1745698244731,-400.0,0.00019862,2]
[359079517,1745698244740,-187.66342988,0.00019862,2]
[359079519,1745698244750,-400.0,0.00019862,2]
[359079521,1745698244759,-400.0,0.00019862,2]
[359079523,1745698244769,-400.0,0.00019862,2]
[359079524,1745698244778,-400.0,0.00019862,2]
[359079526,1745698244787,-737.6,0.00019862,2]
[359079528,1745698244797,-400.0,0.00019862,2]
[359079530,1745698244806,-400.0,0.00019862,2]
[359079532,1745698244816,-400.0,0.00019862,2]
[359079534,1745698244826,-588.4,0.00019862,2]
[359079536,1745698244836,-400.0,0.00019862,2]
[359079538,1745698244847,-400.0,0.00019862,2]
[359079539,1745698244857,-250.0,0.00019862,2]
[359079540,1745698244866,-408.93,0.00019862,2]
[359079541,1745698244876,-551.03,0.00019862,2]
[359079542,1745698244887,-510.99,0.00019862,2]
[359079543,1745698244897,-531.96,0.00019862,2]
[359079544,1745698244907,-400.0,0.00019862,2]
[359079545,1745698244916,-407.2,0.00019862,2]
[359079546,1745698244927,-264.14621512,0.00019862,2]
[359079547,1745698244937,-508.29,0.00019862,2]
[359079548,1745698244948,-400.0,0.00019862,2]
[359079549,1745698244959,-400.0,0.00019862,2]
[359079550,1745698244969,-400.0,0.00019862,2]
[359079551,1745698244979,-629.67,0.00019862,2]
[359079552,1745698244988,-594.65,0.00019862,2]
[359079553,1745698244998,-400.0,0.00019862,2]
[359079554,1745698245007,-912.13,0.00019862,2]
[359079556,1745698245017,-400.0,0.00019862,2]
[359079558,1745698245027,-204.27036496,0.00019862,2]
[359079560,1745698245037,-506.35,0.00019862,2]
[359079562,1745698245046,-454.14,0.00019862,2]
[359079564,1745698245057,-989.29,0.00019862,2]
[359079566,1745698245066,-400.0,0.00019862,2]
[359079568,1745698245076,-400.0,0.00019862,2]
[359079570,1745698245086,-400.0,0.00019862,2]
[359079572,1745698245095,-906.66,0.00019862,2]
[359079574,1745698245104,-400.0,0.00019862,2]
[359079576,1745698245114,-400.0,0.00019862,2]
[359079578,1745698245123,-400.0,0.00019862,2]
[359079580,1745698245133,-400.0,0.00019862,2]
[359079582,1745698245143,-740.24,0.00019862,2]
[359079584,1745698245152,-686.72,0.00019862,2]
[359079586,1745698245162,-400.0,0.00019862,2]
[359079587,1745698245171,-400.0,0.00019862,2]
[359079589,1745698245180,-942.41,0.00019862,2]
[359079591,1745698245190,-840.17,0.00019862,2]
[359079593,1745698245200,-400.0,0.00019862,2]
[359079595,1745698245209,-400.0,0.00019862,2]
[359079597,1745698245219,-534.45,0.00019862,2]
[359079599,1745698245228,-400.0,0.00019862,2]
[359079601,1745698245237,-400.0,0.00019862,2]
[359079603,1745698245247,-449.42,0.00019862,2]
[359079605,1745698245256,-578.82,0.00019862,2]
[359079607,1745698245266,-552.77,0.00019862,2]
[359079609,1745698245276,-400.0,0.00019862,2]
[359079611,1745698245285,-400.0,0.00019862,2]
[359079613,1745698245295,-400.0,0.00019862,2]
[359079615,1745698245304,-400.0,0.00019862,2]
[359079616,1745698245314,-403.67,0.00019862,2]
[359079617,1745698245324,-664.75,0.00019862,2]
[359079618,1745698245334,-400.0,0.00019862,2]
[359079619,1745698245343,-645.67,0.00019862,2]
[359079620,1745698245353,-559.19,0.00019862,2]
[359079621,1745698245363,-400.0,0.00019862,2]
[359079622,1745698245373,-476.62,0.00019862,2]
[359079623,1745698245383,-637.3,0.00019862,2]
[359079624,1745698245392,-400.0,0.00019862,2]
[359079625,1745698245403,-402.72,0.00019862,2]
[359079626,1745698245412,-400.0,0.00019862,2]
[359079627,1745698245422,-400.0,0.00019862,2]
[359079628,1745698245432,-462.44,0.00019862,2]
[359079629,1745698245443,-478.19,0.00019862,2]
[359079630,1745698245452,-628.36,0.00019862,2]
[359079631,1745698245462,-400.0,0.00019862,2]
[359079632,1745698245472,-400.0,0.00019862,2]
[359079633,1745698245482,-485.89,0.00019862,2]
[359079634,1745698245492,-591.57,0.00019862,2]
[359079635,1745698245503,-400.0,0.00019862,2]
[359079636,1745698245512,-585.55,0.00019862,2]
[359079637,1745698245522,-517.99,0.00019862,2]
[359079638,1745698245532,-400.0,0.00019862,2]
[359079639,1745698245543,-99066.11,0.00019862,2]
[359079640,1745698245554,-400.0,0.00019862,2]
[359079641,1745698245563,-695.43,0.00019862,2]
[359079642,1745698245573,-850.14,0.00019862,2]
[359079643,1745698245583,-403.82,0.00019862,2]
[359079644,1745698245592,-539.22,0.00019862,2]
[359079645,1745698245602,-400.0,0.00019862,2]
[359079646,1745698245612,-436.32,0.00019862,2]
[359079647,1745698245623,-481.79,0.00019862,2]
[359079648,1745698245634,-636.52,0.00019862,2]
[359079649,1745698245644,-400.0,0.00019862,2]
[359079650,1745698245654,-564.6,0.00019862,2]
[359079651,1745698245664,-927.5,0.00019862,2]
[359079652,1745698245674,-523.34,0.00019862,2]
[359079653,1745698245683,-680.46,0.00019862,2]
[359079654,1745698245693,-995.49,0.00019862,2]
[359079655,1745698245705,-400.0,0.00019862,2]
[359079656,1745698245714,-798.1,0.00019862,2]
[359079657,1745698245724,-400.0,0.00019862,2]
[359079658,1745698245734,-487.82,0.00019862,2]
[359079659,1745698245743,-400.0,0.00019862,2]
[359079660,1745698245754,-441.82,0.00019862,2]
[359079661,1745698245764,-400.0,0.00019862,2]
[359079662,1745698245774,-400.0,0.00019862,2]
[359079663,1745698245783,-562.91,0.00019862,2]
[359079664,1745698245793,-657.58,0.00019862,2]
[359079665,1745698245802,-400.0,0.00019862,2]
[359079666,1745698245811,-400.0,0.00019862,2]